[Event "White Rook U14 Final 2019"]
[Site "Sochi"]
[Date "2019.06.07"]
[Round "6.32"]
[White "Mkrtchian, Anait"]
[Black "Sergejeva, Sofija"]
[Result "0-1"]
[ECO "C02"]
[WhiteElo "1165"]
[BlackElo "1423"]
[Annotator "NA"]
[PlyCount "73"]
[EventDate "2019.06.02"]
[EventCountry "RUS"]
[SourceTitle "playchess.com"]
[Source "ChessBase"]
[SourceQuality "1"]
[TimeControl "5400+30"]

1. e4 {[%emt 0:00:00]} e6 {[%emt 0:00:00]} 2. d4 {[%emt 0:00:00]} d5 {[%emt 0:00:00]} 3. e5 {[%emt 0:00:00]} c5 {[%emt 0:00:00]} 4. c3 {[%emt 0:00:00]} Nc6 {[%emt 0:00:00]} 5. Nf3 {[%emt 0:00:00]} Qb6 {[%emt 0:00:00]} 6. a3 {[%emt 0:00:00]} a5 {[%emt 0:00:00]} 7. Bd3 {[%emt 0:00:00]} h6 {[%emt 0:00:00]} 8. Bc2 {[%emt 0:00:00]} c4 {[%emt 0:00:00]} 9. Nbd2 {[%emt 0:00:00]} Qa6 {[%emt 0:00:00]} 10. b3 {[%emt 0:00:00]} b5 {[%emt 0:00:00]} 11. bxc4 {[%emt 0:00:00]} dxc4 {[%emt 0:00:00]} 12. Be4 {[%emt 0:00:00]} Nge7 {[%emt 0:00:00]} 13. Nf1 {[%emt 0:00:00]} Nd5 {[%emt 0:00:00]} 14. Bxd5 {[%emt 0:00:00]} exd5 {[%emt 0:00:00]} 15. Ne3 {[%emt 0:00:00]} Be6 {[%emt 0:00:00]} 16. Bd2 {[%emt 0:00:00]} Be7 {[%emt 0:00:00]} 17. Qc2 {[%emt 0:00:00]} O-O {[%emt 0:00:00]} 18. g4 {[%emt 0:00:00]} Rfb8 {[%emt 0:00:00]} 19. h4 {[%emt 0:00:00]} g6 {[%emt 0:00:00]} 20. h5 {[%emt 0:00:00]} g5 {[%emt 0:00:00]} 21. Nf5 {[%emt 0:00:00]} Bxf5 {[%emt 0:00:00]} 22. gxf5 {[%emt 0:00:00]} f6 {[%emt 0:00:00]} 23. e6 {[%emt 0:00:00]} Qb6 {[%emt 0:00:00]} 24. Rg1 {[%emt 0:00:00]} b4 {[%emt 0:00:00]} 25. Rb1 {[%emt 0:00:00]} Qc7 {[%emt 0:00:00]} 26. axb4 {[%emt 0:00:00]} axb4 {[%emt 0:00:00]} 27. cxb4 {[%emt 0:00:00]} Bxb4 {[%emt 0:00:00]} 28. Bxb4 {[%emt 0:00:00]} Nxb4 {[%emt 0:00:00]} 29. Qd1 {[%emt 0:00:00]} Nd3+ {[%emt 0:00:00]} 30. Kf1 {[%emt 0:00:00]} Qf4 {[%emt 0:00:00]} 31. Rg3 {[%emt 1:45:30]} Nxf2 {[%emt 1:45:30]} 32. Rxb8+ {[%emt 0:00:30]} Rxb8 {[%emt 0:00:30]} 33. Qa4 {[%emt 0:00:30]} Qxg3 {[%emt 0:00:30]} 34. Qd7 {[%emt 0:00:30]} Rb1+ {[%emt 0:00:30]} 35. Ke2 {[%emt 0:00:30]} Rb2+ {[%emt 0:00:30]} 36. Ke1 {[%emt 0:00:30]} Nd3+ {[%emt 0:00:30]} 37. Kf1 {[%emt 0:00:30]} 0-1

[Event "White Rook U14 Final 2019"]
[Site "Sochi"]
[Date "2019.06.07"]
[Round "6.33"]
[White "Silva, Kaua Marques"]
[Black "Shakhov, Dmitriy"]
[Result "1-0"]
[ECO "B39"]
[WhiteElo "1991"]
[BlackElo "1624"]
[Annotator "NA"]
[PlyCount "71"]
[EventDate "2019.06.02"]
[EventCountry "RUS"]
[SourceTitle "playchess.com"]
[Source "ChessBase"]
[SourceQuality "1"]
[TimeControl "5400+30"]

1. e4 {[%emt 1:22:19]} c5 {[%emt 1:29:24]} 2. Nf3 {[%emt 0:01:04]} Nc6 {[%emt 0:00:11]} 3. d4 {[%emt 0:00:49]} cxd4 {[%emt 0:00:36]} 4. Nxd4 {[%emt 0:00:04]} g6 {[%emt 0:01:49]} 5. c4 {[%emt 0:08:14]} Bg7 {[%emt 0:00:30]} 6. Be3 {[%emt 0:00:30]} Nf6 {[%emt 0:00:30]} 7. Nc3 {[%emt 0:00:30]} Ng4 {[%emt 0:00:30]} 8. Qxg4 {[%emt 0:00:30]} Nxd4 {[%emt 0:00:30]} 9. Qd1 {[%emt 0:00:30]} Nc6 {[%emt 0:00:30]} 10. Be2 {[%emt 0:00:30]} O-O {[%emt 0:00:30]} 11. O-O {[%emt 0:00:30]} d6 {[%emt 0:00:30]} 12. Qd2 {[%emt 0:00:30]} Be6 {[%emt 0:00:30]} 13. Rab1 $146 {[%emt 0:00:30] B39: Sicilian: Maroczy Bind with 5...Bg7 and 7...Ng4} ({Predecessor:} 13. Rac1 Qa5 14. b3 a6 15. f4 f5 16. Bf3 Kh8 17. exf5 gxf5 18. Rfe1 Bf7 19. Kh1 e5 20. Bxc6 bxc6 21. Qxd6 Rfe8 22. fxe5 {1-0 (61) Roiz,M (2680)-Cmilyte,V (2508) Helsingor 2008}) 13... f5 {[%emt 0:00:30]} 14. exf5 {[%emt 0:00:30]} Bxf5 {[%emt 0:00:30]} 15. Bd3 {[%emt 0:00:30]} Qd7 {[%emt 0:00:30]} 16. Rbd1 {[%emt 0:00:30]} Ne5 {[%emt 0:00:30]} 17. Bxf5 {[%emt 0:00:30]} Rxf5 {[%emt 0:00:30]} 18. Qe2 {[%emt 0:00:30]} Rh5 {[%emt 0:00:30]} 19. h3 {[%emt 0:00:30]} Rf8 {[%emt 0:00:30]} 20. f4 {[%emt 0:00:30]} Nc6 {[%emt 0:00:30]} 21. Qf3 {[%emt 0:00:30]} (21. Ne4 $14) 21... Ra5 {[%emt 0:00:30]} (21... Bxc3 $5 22. bxc3 Qe6 $11) 22. c5 {[%emt 0:00:30]} Qe6 {[%emt 0:00:30]} 23. cxd6 {[%emt 0:00:30]} exd6 $11 {[%emt 0:00:30]} 24. Rfe1 {[%emt 0:00:30]} Bxc3 {[%emt 0:00:30]} 25. bxc3 {[%emt 0:00:30]} Qc4 {[%emt 0:00:30]} 26. Rxd6 {[%emt 0:00:30]} Rxa2 {[%emt 0:00:30]} 27. Rb1 {[%emt 0:00:30]} Qf7 {[%emt 0:00:30]} 28. Qd1 {[%emt 0:00:30]} Re8 {[%emt 0:00:30]} 29. Rd7 {[%emt 0:00:30]} Qe6 {[%emt 0:00:30]} 30. Bf2 {[%emt 0:00:30]} b6 {[%emt 0:00:30]} 31. Rd6 {[%emt 0:00:30]} Qc4 {[%emt 0:00:30]} 32. Qf3 {[%emt 0:00:30]} Na5 {[%emt 0:00:30]} 33. f5 {[%emt 0:00:30]} Rxf2 {[%emt 0:00:30]} 34. Qxf2 {[%emt 0:00:30]} Qe4 {[%emt 0:00:30]} 35. Rf1 {[%emt 0:00:30]} Qxf5 {[%emt 0:00:30]} 36. Qa2+ {[%emt 0:00:30]} 1-0

[Event "White Rook U14 Final 2019"]
[Site "Sochi"]
[Date "2019.06.07"]
[Round "6.34"]
[White "Bratov, Ademir"]
[Black "Da Rosa, Henrique Jaze Simoes"]
[Result "1-0"]
[ECO "C55"]
[WhiteElo "1725"]
[BlackElo "1645"]
[Annotator "NA"]
[PlyCount "24"]
[EventDate "2019.06.02"]
[EventCountry "RUS"]
[SourceTitle "playchess.com"]
[Source "ChessBase"]
[SourceQuality "1"]
[TimeControl "5400+30"]

1. e4 {[%emt 1:30:00]} e5 {[%emt 1:30:00]} 2. Nf3 {[%emt 0:00:09]} Nc6 {[%emt 0:00:16]} 3. Bc4 {[%emt 0:00:16]} Nf6 {[%emt 0:00:08]} 4. d3 {[%emt 0:00:16]} Be7 {[%emt 0:00:16]} 5. c3 {[%emt 0:00:50]} O-O {[%emt 0:00:50]} 6. Bb3 {[%emt 0:00:57]} d6 {[%emt 0:00:34]} 7. Nbd2 {[%emt 0:00:32]} Na5 {[%emt 0:00:56]} 8. Bc2 {[%emt 0:00:18]} c5 {[%emt 0:00:30]} 9. O-O {[%emt 0:00:42]} Nc6 {[%emt 0:00:30]} 10. Re1 {[%emt 0:00:11]} h6 {[%emt 0:00:30]} 11. Nf1 {[%emt 0:00:49]} Be6 {[%emt 0:00:30]} 12. Ng3 {[%emt 0:00:30]} Qc7 {[%emt 0:00:30]} 1-0

[Event "White Rook U14 Final 2019"]
[Site "Sochi"]
[Date "2019.06.07"]
[Round "6.35"]
[White "Parreira, Teodora Ribeiro"]
[Black "Druchenko, Mikhail"]
[Result "0-1"]
[ECO "C56"]
[WhiteElo "1617"]
[BlackElo "1774"]
[Annotator "NA"]
[PlyCount "160"]
[EventDate "2019.06.02"]
[EventCountry "RUS"]
[SourceTitle "playchess.com"]
[Source "ChessBase"]
[SourceQuality "1"]
[TimeControl "5400+30"]

1. e4 {[%emt 0:00:00]} e5 {[%emt 0:00:00]} 2. Nf3 {[%emt 0:00:00]} Nc6 {[%emt 0:00:00]} 3. Bc4 {[%emt 0:00:00]} Bc5 {[%emt 0:00:00]} 4. c3 {[%emt 0:00:00]} Nf6 {[%emt 0:00:00]} 5. d4 {[%emt 0:00:00]} exd4 {[%emt 0:00:00]} 6. O-O {[%emt 0:00:00]} Nxe4 {[%emt 0:00:00]} 7. cxd4 {[%emt 0:00:00]} d5 {[%emt 0:00:00]} 8. dxc5 {[%emt 0:00:00]} dxc4 {[%emt 0:00:00]} 9. Qxd8+ {[%emt 0:00:00]} Kxd8 {[%emt 0:00:00]} 10. Rd1+ {[%emt 0:00:00]} Bd7 {[%emt 0:00:00]} 11. Be3 {[%emt 0:00:00]} Ke7 {[%emt 0:00:00]} 12. Rc1 {[%emt 0:00:00]} Be6 {[%emt 0:00:00]} 13. Na3 {[%emt 0:00:00]} Nb4 {[%emt 0:00:00]} 14. Ne5 {[%emt 0:00:00]} c3 {[%emt 0:00:00]} 15. b3 {[%emt 0:00:00]} f6 {[%emt 0:00:00]} 16. Nec4 {[%emt 0:00:00]} Bxc4 {[%emt 0:00:00]} 17. Nxc4 {[%emt 0:00:00]} Nd3 {[%emt 0:00:00]} 18. Rc2 {[%emt 0:00:00]} Rhd8 {[%emt 0:00:00]} 19. Na5 {[%emt 0:00:00]} Rab8 {[%emt 0:00:00]} 20. f3 {[%emt 0:00:00]} Nexc5 {[%emt 0:00:00]} 21. Rxc3 {[%emt 0:00:00]} Rd5 {[%emt 0:00:00]} 22. b4 {[%emt 0:00:00]} Ne6 {[%emt 0:00:00]} 23. a3 {[%emt 0:00:00]} c5 {[%emt 0:00:00]} 24. bxc5 {[%emt 0:00:00]} Ndxc5 {[%emt 0:00:00]} 25. Rac1 {[%emt 0:00:00]} Kd6 {[%emt 0:00:00]} 26. Nc4+ {[%emt 0:00:00]} Kc6 {[%emt 0:00:00]} 27. Na5+ {[%emt 0:00:00]} Kd6 {[%emt 0:00:00]} 28. Nc4+ {[%emt 0:00:00]} Kd7 {[%emt 0:00:00]} 29. Nd2 {[%emt 0:00:00]} b6 {[%emt 0:00:00]} 30. Nb3 {[%emt 0:00:00]} Nxb3 {[%emt 0:00:00]} 31. Rxb3 {[%emt 0:00:00]} Rd8 {[%emt 0:00:00]} 32. Kf2 {[%emt 0:00:00]} Kd6 {[%emt 0:00:00]} 33. Re1 {[%emt 0:00:00]} Nd4 {[%emt 0:00:00]} 34. Rd3 {[%emt 0:00:00]} Ne6 {[%emt 0:00:00]} 35. Rc3 {[%emt 0:00:00]} Nc5 {[%emt 0:00:00]} 36. Ke2 {[%emt 0:00:00]} Kc6 {[%emt 0:00:00]} 37. Kf2 {[%emt 0:00:00]} R8d7 {[%emt 0:00:00]} 38. Rec1 {[%emt 0:00:00]} Kd6 {[%emt 0:00:00]} 39. Bf4+ {[%emt 0:00:00]} Ke6 {[%emt 0:00:00]} 40. Ke2 {[%emt 0:00:00]} Nd3 {[%emt 0:00:00]} 41. Rc6+ {[%emt 0:00:00]} Kf7 {[%emt 0:00:00]} 42. R1c4 {[%emt 0:00:00]} Re7+ {[%emt 0:00:00]} 43. Be3 {[%emt 0:00:00]} Ne5 {[%emt 0:00:00]} 44. Kf2 {[%emt 0:00:00]} Nxc6 {[%emt 0:00:00]} 45. Rxc6 {[%emt 0:00:00]} Rd3 {[%emt 0:00:00]} 46. Bc1 {[%emt 0:00:00]} Rdd7 {[%emt 0:00:00]} 47. Bf4 {[%emt 0:00:00]} g5 {[%emt 0:00:00]} 48. Bg3 {[%emt 0:00:00]} Re6 {[%emt 0:00:00]} 49. Rc2 {[%emt 0:00:00]} b5 {[%emt 0:00:00]} 50. Rb2 {[%emt 0:00:00]} Rb6 {[%emt 0:00:00]} 51. Ke2 {[%emt 0:00:00]} a5 {[%emt 0:00:00]} 52. Be1 {[%emt 0:00:00]} a4 {[%emt 0:00:00]} 53. Bb4 {[%emt 0:00:00]} Re6+ {[%emt 0:00:00]} 54. Kf2 {[%emt 0:00:00]} Rd3 {[%emt 0:00:00]} 55. Rc2 {[%emt 0:00:00]} Rb3 {[%emt 0:00:00]} 56. Kg3 {[%emt 0:00:00]} h5 {[%emt 0:00:00]} 57. h4 {[%emt 0:00:00]} g4 {[%emt 0:00:00]} 58. Rc7+ {[%emt 0:00:00]} Ke8 {[%emt 0:00:00]} 59. Rc5 {[%emt 0:00:00]} Re5 {[%emt 0:00:00]} 60. Rc6 {[%emt 0:00:00]} Rf5 {[%emt 0:00:00]} 61. Re6+ {[%emt 0:00:00]} Kd7 {[%emt 0:00:00]} 62. Re7+ {[%emt 0:00:00]} Kc6 {[%emt 0:00:00]} 63. Re6+ {[%emt 0:00:00]} Kd5 {[%emt 0:00:00]} 64. Rd6+ {[%emt 0:00:00]} Kc4 {[%emt 0:00:00]} 65. Rc6+ {[%emt 0:00:00]} Kd4 {[%emt 0:00:00]} 66. Rd6+ {[%emt 0:00:00]} Ke5 {[%emt 0:00:00]} 67. Rb6 {[%emt 0:00:00]} gxf3 {[%emt 0:00:00]} 68. Rxb5+ {[%emt 0:00:00]} Ke4 {[%emt 0:00:00]} 69. Rxf5 {[%emt 0:00:00]} fxg2+ {[%emt 0:00:00]} 70. Kxg2 {[%emt 0:00:00]} Kxf5 {[%emt 0:00:00]} 71. Be7 {[%emt 0:00:00]} Kg4 {[%emt 0:00:00]} 72. Kf2 {[%emt 0:00:00]} Kxh4 {[%emt 0:00:00]} 73. Bxf6+ {[%emt 0:00:00]} Kg4 {[%emt 0:00:00]} 74. Be7 {[%emt 0:00:00]} h4 {[%emt 0:00:00]} 75. Kg2 {[%emt 2:07:30]} h3+ {[%emt 2:07:30]} 76. Kh1 {[%emt 0:00:30]} Rd3 {[%emt 0:00:30]} 77. Kh2 {[%emt 0:00:30]} Rd2+ {[%emt 0:00:30]} 78. Kh1 {[%emt 0:00:30]} Kg3 {[%emt 0:00:30]} 79. Bc5 {[%emt 0:00:30]} h2 {[%emt 0:00:30]} 80. Bf2+ {[%emt 0:00:30]} Kxf2 {[%emt 0:00:30]} 0-1

[Event "White Rook U14 Final 2019"]
[Site "Sochi"]
[Date "2019.06.08"]
[Round "7.1"]
[White "Tugstumur, Yesuntumur"]
[Black "Abrazevich, Yauheni"]
[Result "1/2-1/2"]
[ECO "E94"]
[WhiteElo "2356"]
[BlackElo "1888"]
[Annotator "NA"]
[PlyCount "134"]
[EventDate "2019.06.02"]
[EventCountry "RUS"]
[SourceTitle "playchess.com"]
[Source "ChessBase"]
[SourceQuality "1"]
[TimeControl "5400+30"]

1. d4 {[%emt 0:00:00]} Nf6 {[%emt 0:00:00]} 2. c4 {[%emt 0:00:00]} g6 {[%emt 0:00:00]} 3. Nc3 {[%emt 0:00:00]} Bg7 {[%emt 0:00:00]} 4. e4 {[%emt 0:00:00]} d6 {[%emt 0:00:00]} 5. Nf3 {[%emt 0:00:00]} O-O {[%emt 0:00:00]} 6. Be2 {[%emt 0:00:00]} e5 {[%emt 0:00:00]} 7. O-O {[%emt 0:00:00]} exd4 {[%emt 0:00:20]} 8. Nxd4 {[%emt 0:00:00]} Re8 {[%emt 0:00:51]} 9. Bd3 {[%emt 0:01:12]} Nfd7 {[%emt 0:03:21]} 10. Be3 {[%emt 0:01:07]} Ne5 {[%emt 0:03:06]} 11. Be2 {[%emt 0:01:29]} Nec6 {[%emt 0:07:59]} 12. Nxc6 {[%emt 0:11:40]} Nxc6 {[%emt 0:00:13]} 13. f3 {[%emt 0:01:03]} Be6 {[%emt 0:03:52]} 14. Qd2 {[%emt 0:01:29]} Ne5 {[%emt 0:02:37]} 15. b3 {[%emt 0:01:02]} Nc6 {[%emt 0:09:46]} 16. Rac1 {[%emt 0:00:36]} f5 {[%emt 0:10:04]} 17. Nd5 {[%emt 0:00:46]} Ne5 {[%emt 0:02:06]} 18. Bg5 {[%emt 0:00:42]} Qd7 {[%emt 0:00:09]} 19. f4 {[%emt 0:05:27]} Nf7 {[%emt 0:03:52]} 20. Nf6+ {[%emt 0:00:18]} Bxf6 {[%emt 0:00:20]} 21. Bxf6 {[%emt 0:00:33]} h6 {[%emt 0:07:23]} 22. Bf3 {[%emt 0:03:45]} c6 {[%emt 0:01:04]} 23. Bb2 {[%emt 0:00:39]} Kh7 {[%emt 0:00:35]} 24. Qc3 {[%emt 0:00:28]} Rg8 {[%emt 0:00:17]} 25. exf5 {[%emt 0:00:32]} Bxf5 {[%emt 0:03:36]} 26. Rfe1 {[%emt 0:00:09]} Raf8 {[%emt 0:03:54]} 27. h3 {[%emt 0:00:30]} g5 {[%emt 0:04:28]} 28. g4 {[%emt 0:31:17]} gxf4 {[%emt 0:01:24]} 29. Kh2 {[%emt 0:00:03]} Bg6 {[%emt 0:04:05]} 30. Rcd1 {[%emt 0:01:14]} Qd8 {[%emt 0:09:30]} 31. Re6 {[%emt 0:04:38]} Re8 {[%emt 0:02:09]} 32. Rxe8 {[%emt 0:00:34]} Qxe8 {[%emt 0:01:14]} 33. c5 {[%emt 0:02:15]} d5 {[%emt 0:00:22]} 34. Re1 {[%emt 0:00:57]} Qd8 {[%emt 0:02:22]} 35. Bg2 {[%emt 0:03:28]} Ng5 {[%emt 0:02:58]} 36. Qe5 {[%emt 0:01:31]} f3 {[%emt 0:02:32]} 37. Qe7+ {[%emt 0:03:00]} Qxe7 {[%emt 0:04:25]} 38. Rxe7+ {[%emt 0:00:09]} Bf7 {[%emt 0:01:56]} 39. h4 {[%emt 0:00:05]} Re8 {[%emt 0:00:05]} 40. Rxe8 {[%emt 0:01:25]} Bxe8 {[%emt 0:01:09]} 41. hxg5 {[%emt 0:05:02]} fxg2 {[%emt 0:00:12]} 42. gxh6 {[%emt 0:00:04]} Kxh6 {[%emt 0:00:13]} 43. Kxg2 {[%emt 0:00:03]} b6 {[%emt 0:00:44]} 44. Bd4 {[%emt 0:00:03]} bxc5 {[%emt 0:02:29]} 45. Bxc5 {[%emt 0:00:39]} a6 {[%emt 0:01:48]} 46. Kg3 {[%emt 0:00:32]} Kg5 {[%emt 0:00:23]} 47. Be7+ {[%emt 0:00:02]} Kg6 {[%emt 0:00:06]} 48. Kf4 {[%emt 0:00:05]} Bd7 {[%emt 0:01:47]} 49. Bc5 {[%emt 0:00:03]} Kf6 {[%emt 0:00:10]} 50. b4 {[%emt 0:00:06]} Kg6 {[%emt 0:00:52]} 51. a3 {[%emt 0:00:58]} Kf6 {[%emt 0:00:43]} 52. Be3 {[%emt 0:00:05]} Kg6 {[%emt 0:01:01]} 53. g5 {[%emt 0:00:25]} Bf5 {[%emt 0:00:06]} 54. Ke5 {[%emt 0:00:30]} Bc2 {[%emt 0:00:28]} 55. Bd2 {[%emt 0:00:26]} Ba4 {[%emt 0:00:02]} 56. Kd4 {[%emt 0:00:03]} Bb5 {[%emt 0:00:15]} 57. Kc5 {[%emt 0:00:21]} Kf5 {[%emt 0:00:25]} 58. Kb6 {[%emt 0:00:07]} Kg6 {[%emt 0:00:16]} 59. Ka5 {[%emt 0:00:05]} Kf5 {[%emt 0:00:05]} 60. a4 {[%emt 0:00:05]} Bc4 {[%emt 0:00:05]} 61. Kb6 {[%emt 0:00:04]} Bb3 {[%emt 0:01:45]} 62. a5 {[%emt 0:00:07]} Bc4 {[%emt 0:00:07]} 63. Kxc6 {[%emt 0:00:23]} Kg6 {[%emt 0:00:12]} 64. Kc5 {[%emt 0:00:04]} Kf5 {[%emt 0:00:08]} 65. Kd4 {[%emt 0:00:27]} Kg6 {[%emt 0:00:06]} 66. Ke5 {[%emt 0:00:11]} Bb5 {[%emt 0:00:07]} 67. Kxd5 {[%emt 0:00:09]} Bf1 {[%emt 0:00:08]} 1/2-1/2

[Event "White Rook U14 Final 2019"]
[Site "Sochi"]
[Date "2019.06.08"]
[Round "7.2"]
[White "Dyl, Nikita"]
[Black "Munkhzul, Davaakhuu"]
[Result "0-1"]
[ECO "D07"]
[WhiteElo "1646"]
[BlackElo "1806"]
[Annotator "NA"]
[PlyCount "57"]
[EventDate "2019.06.02"]
[EventCountry "RUS"]
[SourceTitle "playchess.com"]
[Source "ChessBase"]
[SourceQuality "1"]
[TimeControl "5400+30"]

1. d4 {[%emt 0:00:00]} d5 {[%emt 0:00:39]} 2. c4 {[%emt 0:00:00]} Nc6 {[%emt 0:00:06]} 3. e3 {[%emt 0:00:16]} Bf5 {[%emt 0:02:56]} 4. Qb3 {[%emt 0:05:20]} e6 {[%emt 0:02:01]} 5. Qxb7 {[%emt 0:02:49]} Nb4 {[%emt 0:02:31]} 6. Na3 {[%emt 0:02:58]} a6 {[%emt 0:06:49]} 7. Bd2 {[%emt 0:07:55]} Rb8 {[%emt 0:02:19]} 8. Qa7 {[%emt 0:00:10]} Rb6 {[%emt 0:00:06]} 9. Bxb4 {[%emt 0:03:05]} Bxb4+ {[%emt 0:00:16]} 10. Kd1 {[%emt 0:00:09]} Bxa3 {[%emt 0:08:25]} 11. bxa3 {[%emt 0:03:12]} Nf6 {[%emt 0:01:46]} 12. c5 {[%emt 0:02:39]} Rb2 {[%emt 0:01:10]} 13. f3 {[%emt 0:12:20]} O-O {[%emt 0:03:17]} 14. Qxa6 {[%emt 0:05:20]} Qb8 {[%emt 0:02:00]} 15. Ke1 {[%emt 0:00:43]} Rb1+ {[%emt 0:06:56]} 16. Rxb1 {[%emt 0:00:13]} Qxb1+ {[%emt 0:00:02]} 17. Kf2 {[%emt 0:00:38]} Rb8 {[%emt 0:00:41]} 18. Be2 {[%emt 0:08:44]} h6 {[%emt 0:02:14]} 19. g4 {[%emt 0:17:37]} Nxg4+ {[%emt 0:03:40]} 20. fxg4 {[%emt 0:03:30]} Be4 {[%emt 0:01:19]} 21. Bf3 {[%emt 0:00:34]} Bxf3 {[%emt 0:01:55]} 22. Nxf3 {[%emt 0:02:24]} Qxh1 {[%emt 0:00:18]} 23. Qe2 {[%emt 0:01:38]} Qc1 {[%emt 0:00:16]} 24. Kg3 {[%emt 0:00:03]} Qxa3 {[%emt 0:00:46]} 25. Ne5 {[%emt 0:00:31]} f6 {[%emt 0:00:26]} 26. Qd3 {[%emt 0:01:12]} Qxa2 {[%emt 0:00:41]} 27. Nd7 {[%emt 0:02:22]} Rb2 {[%emt 0:01:39]} 28. Nxf6+ {[%emt 0:01:52]} Kf7 {[%emt 0:00:45]} 29. Qf1 {[%emt 0:01:14]} 0-1

[Event "White Rook U14 Final 2019"]
[Site "Sochi"]
[Date "2019.06.08"]
[Round "7.3"]
[White "Aldar Burentegsh"]
[Black "Zaiko, Stanislav"]
[Result "1/2-1/2"]
[ECO "C50"]
[WhiteElo "1812"]
[BlackElo "1176"]
[Annotator "NA"]
[PlyCount "66"]
[EventDate "2019.06.02"]
[EventCountry "RUS"]
[SourceTitle "playchess.com"]
[Source "ChessBase"]
[SourceQuality "1"]
[TimeControl "5400+30"]

1. e4 {[%emt 0:00:00]} e5 {[%emt 0:00:00]} 2. Nf3 {[%emt 0:00:00]} Nc6 {[%emt 0:00:00]} 3. Bc4 {[%emt 0:00:00]} Bc5 {[%emt 0:00:00]} 4. Nc3 {[%emt 0:00:00]} Nf6 {[%emt 0:00:00]} 5. O-O {[%emt 0:00:00]} O-O {[%emt 0:00:00]} 6. d3 {[%emt 0:00:00]} d6 {[%emt 0:00:00]} 7. Bg5 {[%emt 0:00:00]} h6 {[%emt 0:00:46]} 8. Bh4 {[%emt 0:00:00]} Bg4 {[%emt 0:01:20]} 9. h3 {[%emt 0:01:04]} Bxf3 {[%emt 0:03:37]} 10. Qxf3 {[%emt 0:00:00]} Nd4 {[%emt 0:00:06]} 11. Qd1 {[%emt 0:00:22]} c6 {[%emt 0:04:04]} 12. Ne2 {[%emt 0:01:09]} Nxe2+ {[%emt 0:08:00]} 13. Qxe2 {[%emt 0:00:06]} g5 {[%emt 0:02:30]} 14. Bg3 {[%emt 0:01:19]} Qe7 {[%emt 0:11:05]} 15. Bb3 {[%emt 0:03:19]} Kh8 {[%emt 0:11:09]} 16. Rad1 {[%emt 0:02:39]} Rad8 {[%emt 0:07:27]} 17. c3 {[%emt 0:00:43]} Bb6 {[%emt 0:00:04]} 18. Rfe1 {[%emt 0:00:49]} Rd7 {[%emt 0:01:18]} 19. d4 {[%emt 0:00:29]} exd4 {[%emt 0:00:00]} 20. cxd4 {[%emt 0:00:05]} Ba5 {[%emt 0:00:24]} 21. e5 {[%emt 0:31:02]} Bxe1 {[%emt 0:02:44]} 22. Rxe1 {[%emt 0:00:08]} dxe5 {[%emt 0:04:42]} 23. Qxe5 {[%emt 0:27:56]} Qxe5 {[%emt 0:04:30]} 24. Bxe5 {[%emt 0:00:07]} Kg7 {[%emt 0:00:03]} 25. Re3 {[%emt 0:00:08]} Rfd8 {[%emt 0:00:51]} 26. Rf3 {[%emt 0:00:20]} Rd6 {[%emt 0:00:58]} 27. Kf1 {[%emt 0:03:00]} Kg6 {[%emt 0:05:22]} 28. Bc2+ {[%emt 0:00:14]} Kg7 {[%emt 0:00:00]} 29. Bb3 {[%emt 0:00:49]} Kg6 {[%emt 0:00:00]} 30. Bc2+ {[%emt 0:00:19]} Kg7 {[%emt 0:00:00]} 31. Bb3 {[%emt 0:02:18]} Kg6 {[%emt 0:00:16]} 32. Bc2+ {[%emt 0:00:07]} Kg7 {[%emt 0:00:01]} 33. Bb3 {[%emt 0:00:45]} Kg6 {[%emt 0:00:07]} 1/2-1/2

[Event "White Rook U14 Final 2019"]
[Site "Sochi"]
[Date "2019.06.08"]
[Round "7.4"]
[White "Zeliantsova, Kseniya"]
[Black "Unurzul, Davaakhuu"]
[Result "1-0"]
[ECO "C89"]
[WhiteElo "1892"]
[BlackElo "1442"]
[Annotator "NA"]
[PlyCount "79"]
[EventDate "2019.06.02"]
[EventCountry "RUS"]
[SourceTitle "playchess.com"]
[Source "ChessBase"]
[SourceQuality "1"]
[TimeControl "5400+30"]

1. e4 {[%emt 0:00:00]} e5 {[%emt 0:00:00]} 2. Nf3 {[%emt 0:00:00]} Nc6 {[%emt 0:00:00]} 3. Bb5 {[%emt 0:00:00]} a6 {[%emt 0:00:00]} 4. Ba4 {[%emt 0:00:00]} Nf6 {[%emt 0:00:25]} 5. O-O {[%emt 0:00:00]} Be7 {[%emt 0:00:00]} 6. Re1 {[%emt 0:00:00]} b5 {[%emt 0:00:00]} 7. Bb3 {[%emt 0:00:00]} O-O {[%emt 0:01:10]} 8. c3 {[%emt 0:00:13]} d5 {[%emt 0:00:57]} 9. exd5 {[%emt 0:01:32]} Nxd5 {[%emt 0:00:20]} 10. Nxe5 {[%emt 0:01:49]} Nxe5 {[%emt 0:00:16]} 11. Rxe5 {[%emt 0:00:05]} c6 {[%emt 0:00:45]} 12. d4 {[%emt 0:03:31]} Bd6 {[%emt 0:00:29]} 13. Re1 {[%emt 0:01:41]} Qh4 {[%emt 0:05:39]} 14. g3 {[%emt 0:00:21]} Qh3 {[%emt 0:00:30]} 15. Be3 {[%emt 0:12:09]} Bg4 {[%emt 0:03:11]} 16. Qd3 {[%emt 0:00:06]} Rae8 {[%emt 0:10:43]} 17. Nd2 {[%emt 0:02:45]} Re6 {[%emt 0:04:17]} 18. Qf1 {[%emt 0:02:02]} Qh5 {[%emt 0:00:00]} 19. Qg2 {[%emt 0:17:44]} Rfe8 {[%emt 0:06:04]} 20. Bxd5 {[%emt 0:04:43]} cxd5 {[%emt 0:00:09]} 21. a4 {[%emt 0:00:43]} Bh3 {[%emt 0:07:15]} 22. Qh1 {[%emt 0:02:28]} Bg4 {[%emt 0:05:06]} 23. axb5 {[%emt 0:03:40]} axb5 {[%emt 0:00:00]} 24. Ra5 {[%emt 0:03:52]} f5 {[%emt 0:22:29]} 25. Qxd5 {[%emt 0:08:04]} Kh8 {[%emt 0:00:31]} 26. Ra8 {[%emt 0:01:29]} Qg6 {[%emt 0:00:30]} 27. Nf3 {[%emt 0:01:38]} h6 {[%emt 0:07:58]} 28. Ne5 {[%emt 0:17:31]} Bxe5 {[%emt 0:10:49]} 29. Rxe8+ {[%emt 0:04:49]} Qxe8 {[%emt 0:00:17]} 30. Bf4 {[%emt 0:00:20]} Bh5 {[%emt 0:00:09]} 31. Bxe5 {[%emt 0:00:26]} Bf7 {[%emt 0:01:17]} 32. Qf3 {[%emt 0:01:09]} Bg6 {[%emt 0:00:15]} 33. Ra1 {[%emt 0:00:19]} Kh7 {[%emt 0:00:21]} 34. Qa8 {[%emt 0:00:32]} Qf7 {[%emt 0:00:39]} 35. f4 {[%emt 0:00:41]} Bh5 {[%emt 0:01:27]} 36. Qb8 {[%emt 0:01:55]} Qe8 {[%emt 0:01:05]} 37. Qxe8 {[%emt 0:01:29]} Bxe8 {[%emt 0:00:01]} 38. Ra7 {[%emt 0:01:00]} Rg6 {[%emt 0:04:57]} 39. d5 {[%emt 0:00:06]} h5 {[%emt 0:00:52]} 40. Re7 {[%emt 0:00:03]} 1-0